fUST/lending_fUST_20251024
["ID","MTS","AMOUNT","RATE_DAILY","PERIOD"]
[392222122,1761265838940,-500.0,0.00022251,2]
[392222123,1761265838951,-500.0,0.00022251,2]
[392222124,1761265838960,-500.0,0.00022251,2]
[392222125,1761265838971,-500.0,0.00022251,2]
[392222126,1761265838980,-500.0,0.00022251,2]
[392222127,1761265838989,-500.0,0.00022251,2]
[392222128,1761265838999,-500.0,0.00022251,2]
[392222129,1761265839008,-500.0,0.00022251,2]
[392222130,1761265839018,-400.0,0.00022251,2]
[392222131,1761265839029,-500.0,0.00022251,2]
[392222132,1761265839039,-500.0,0.00022251,2]
[392222133,1761265839048,-500.0,0.00022251,2]
[392222134,1761265839058,-500.0,0.00022251,2]
[392222135,1761265839068,-151.0,0.00022254,2]
[392222136,1761265839078,-151.0,0.00022254,2]
[392222137,1761265839088,-370000.0,0.00022257,2]
[392222138,1761265839098,-500.0,0.00022273,2]
[392222139,1761265839108,-268.51685501,0.00022273,2]
[392222140,1761265839119,-500.0,0.00022273,2]
[392222141,1761265839129,-14113.87,0.000223,7]
[392222142,1761265839139,-500.0,0.0002236,2]
[392222143,1761265839149,-1000.0,0.00022821,2]
[392222144,1761265839159,-1000.0,0.00022821,2]
[392222145,1761265839169,-5490.03222601,0.00022832,2]
[392222146,1761265839179,-227.94913904,0.00022989,2]
[392222147,1761265839191,-234.45,0.00023,5]
[392222148,1761265839201,-398.56340195,0.00023033,2]
[392222149,1761265839211,-5251.3661584,0.00023037,2]
[392222150,1761265839220,-276.1069714,0.00023037,2]
[392222151,1761265839234,-247.9795741,0.00023037,2]
[392222152,1761265839244,-1000.0,0.00023047,2]
[392222153,1761265839254,-1000.0,0.00023047,2]
[392222154,1761265839264,-1000.0,0.00023047,2]
[392222155,1761265839274,-1000.0,0.00023047,2]
[392222156,1761265839283,-1000.0,0.00023047,2]
[392222157,1761265839293,-160.0,0.00023136,2]
[392222158,1761265839302,-160.0,0.00023136,2]
[392222159,1761265839312,-1000.0,0.000232,2]
[392222160,1761265839321,-151.0,0.00023254,2]
[392222161,1761265839331,-151.0,0.00023254,2]
[392222162,1761265839342,-218.84205987,0.00023254,2]
[392222163,1761265839351,-983.0,0.00023276,2]
[392222164,1761265839360,-632.0,0.00023276,2]
[392222165,1761265839369,-2165.0,0.00023276,2]
[392222166,1761265839380,-411.0,0.00023276,2]
[392222167,1761265839390,-300.0,0.00023348,2]
[392222168,1761265839399,-450.0,0.00023348,2]
[392222169,1761265839409,-600.0,0.00023348,2]
[392222170,1761265839418,-750.0,0.00023348,2]
[392222171,1761265839428,-803.48804239,0.00023348,2]
[392222172,1761265839437,-1000.0,0.00023348,2]
[392222173,1761265839447,-1000.0,0.00023348,2]
[392222174,1761265839457,-1000.0,0.00023348,2]
[392222175,1761265839466,-307.17862515,0.00023349,2]
[392222176,1761265839475,-552.92152528,0.00023349,2]
[392222177,1761265839484,-982.9716005,0.00023349,2]
[392222178,1761265839495,-1535.89312577,0.00023349,2]
[392222179,1761265839504,-2211.68610112,0.00023349,2]
[392222180,1761265839514,-409.43864258,0.00023349,2]
[392222181,1761265839523,-1500.0,0.00023368,2]
[392222182,1761265839533,-1500.0,0.00023368,2]
[392222183,1761265839543,-1000.0,0.000234,2]
[392222184,1761265839552,-4205.0,0.00023445,2]
[392222185,1761265839562,-5490.03222601,0.0002349,2]
[392222186,1761265839571,-206.0,0.00023508,2]
[392222187,1761265839582,-206.0,0.0002357,2]
[392222188,1761265839591,-206.0,0.00023573,2]
[392222189,1761265839602,-1000.0,0.000236,2]
[392222190,1761265839611,-206.0,0.00023611,2]
[392222191,1761265839621,-500.0,0.0002375,2]
[392222192,1761265839631,-500.0,0.0002375,2]
[392222193,1761265839640,-206.0,0.0002378,2]
[392222194,1761265839650,-1031.06798522,0.0002378,2]
[392222195,1761265839659,-206.0,0.00023802,2]
[392222196,1761265839669,-600.0,0.00023815,20]
[392222197,1761265839679,-206.0,0.00023817,2]
[392222198,1761265839689,-1500.0,0.0002385,2]
[392222199,1761265839701,-206.0,0.00023856,2]
[392222200,1761265839711,-206.0,0.00023887,2]
[392222201,1761265839722,-2000.0,0.00023916,2]
[392222202,1761265839732,-2000.0,0.00023916,2]
[392222203,1761265839742,-1556.22236748,0.00024,2]
[392222204,1761265839753,-164.04796633,0.00024,2]
[392222205,1761265839762,-460.93580726,0.00024,2]
[392222206,1761265839772,-14344.60455045,0.0002405,2]
[392222207,1761265839782,-420.0,0.00024089,2]
[392222208,1761265839793,-516.12786272,0.00024097,2]
[392222209,1761265839803,-277.0,0.000241,2]
[392222210,1761265839813,-612.63214996,0.00024142,2]
[392222211,1761265839822,-5490.03222601,0.00024149,2]
[392222212,1761265839831,-281.2,0.000242,2]
[392222213,1761265839841,-413.0,0.00024209,2]
[392222214,1761265839851,-945.79223842,0.00024298,2]
[392222215,1761265839860,-1000.0,0.00024298,2]
[392222216,1761265839870,-160.0,0.000243,2]
[392222217,1761265839969,-413.0,0.00024314,2]
[392222218,1761265839979,-206.0,0.00024399,2]
[392222219,1761265839991,-206.0,0.00024433,2]
[392222220,1761265840000,-413.0,0.00024449,2]
[392222221,1761265840010,-2500.0,0.00024464,2]
[392222222,1761265840022,-2500.0,0.00024464,2]
[392222223,1761265840033,-413.0,0.00024483,2]
[392222224,1761265840043,-14113.87,0.000245,7]
[392222225,1761265840053,-156.985848,0.0002454,20]
[392222226,1761265840063,-413.0,0.00024566,2]
[392222227,1761265840072,-4231.0,0.00024574,7]
[392222228,1761265840082,-413.0,0.00024599,2]
[392222229,1761265840091,-380.0,0.00024658,2]
[392222230,1761265840100,-467.0,0.00024658,2]
[392222231,1761265840109,-151.0,0.000247,9]
[392222232,1761265840119,-467.0,0.00024713,2]
[392222233,1761265840131,-467.0,0.00024768,2]
[392222234,1761265840141,-200.0,0.00024799,2]
[392222235,1761265840150,-160.74874242,0.00024799,2]
[392222236,1761265840160,-160.0,0.000248,5]
[392222237,1761265840169,-170.0,0.000248,20]
[392222238,1761265840179,-161.0,0.000248,5]
[392222239,1761265840188,-24613.4141045,0.000248,2]
[392222240,1761265840197,-5490.03222601,0.00024807,2]
[392222241,1761265840208,-178.5838744,0.00024807,2]
[392222242,1761265840217,-467.0,0.00024822,2]
[392222243,1761265840226,-1500.0,0.00024846,2]
[392222244,1761265840235,-260.0,0.00024848,2]
[392222245,1761265840246,-280.77516986,0.00024873,2]
[392222246,1761265840255,-500.0,0.00024873,2]
[392222247,1761265840269,-500.0,0.00024873,2]
[392222248,1761265840282,-503.36300446,0.00024873,2]
[392222249,1761265840292,-500.0,0.00024873,2]
[392222250,1761265840302,-436.18798333,0.00024873,2]
[392222251,1761265840312,-501.68609021,0.00024873,2]
[392222252,1761265840323,-500.0,0.00024873,2]
[392222253,1761265840333,-500.0,0.00024873,2]
[392222254,1761265840342,-500.0,0.00024873,2]
[392222255,1761265840353,-500.0,0.00024873,2]
[392222256,1761265840363,-500.0,0.00024873,2]
[392222257,1761265840372,-390.95759192,0.00024873,2]
[392222258,1761265840387,-461.82009317,0.00024873,2]
[392222259,1761265840396,-501.06834717,0.00024873,2]
[392222260,1761265840405,-501.63714413,0.00024873,2]
[392222261,1761265840414,-500.0,0.00024873,2]
[392222262,1761265840423,-500.0,0.00024873,2]
[392222263,1761265840432,-500.0,0.00024873,2]
[392222264,1761265840442,-500.0,0.00024873,2]
[392222265,1761265840452,-500.0,0.00024873,2]
[392222267,1761265840461,-215.95129945,0.00024873,2]
[392222269,1761265840470,-500.0,0.00024873,2]
[392222271,1761265840481,-331.36782539,0.00024873,2]
[392222273,1761265840491,-500.0,0.00024873,2]
[392222275,1761265840500,-500.0,0.00024873,2]
[392222277,1761265840509,-503.61283294,0.00024873,2]
[392222279,1761265840520,-500.0,0.00024873,2]
[392222281,1761265840531,-500.0,0.00024873,2]
[392222283,1761265840540,-500.0,0.00024873,2]
[392222285,1761265840550,-500.0,0.00024873,2]
[392222287,1761265840559,-500.0,0.00024873,2]
[392222289,1761265840568,-500.0,0.00024873,2]
[392222291,1761265840577,-500.0,0.00024873,2]
[392222293,1761265840587,-500.0,0.00024873,2]
[392222295,1761265840597,-467.0,0.00024877,2]
[392222297,1761265840607,-204.03219702,0.00024899,2]
[392222299,1761265840616,-403.24192968,0.000249,7]
[392222301,1761265840627,-727766.758663,0.000249,2]
[392222303,1761265840636,-413.0,0.00024907,2]
[392222305,1761265840646,-413.0,0.00024921,2]
[392222307,1761265840656,-500.0,0.00024932,5]
[392222309,1761265840666,-467.0,0.00024932,2]
[392222311,1761265840675,-600.0,0.0002496,2]
[392222313,1761265840685,-1893.3395465,0.00024972,2]
[392222315,1761265840695,-4231.0,0.00024982,2]
[392222317,1761265840704,-413.0,0.00024985,2]
[392222319,1761265840713,-467.0,0.00024987,2]
[392222321,1761265840722,-1893.3395465,0.0002499,2]
[392222323,1761265840731,-4000.0,0.00024999,2]
[392222325,1761265840740,-1076.59631976,0.00025,2]
[392222326,1761265840749,-450.74551891,0.00025,7]
[392222327,1761265840758,-1411.46210373,0.00025,2]
[392222328,1761265840767,-19152.75425938,0.00025,3]
[392222329,1761265840776,-363.09185821,0.00025,2]
[392222330,1761265840785,-250.0,0.00025,7]
[392222331,1761265840794,-403.24192968,0.00025,3]
[392222332,1761265840803,-267.6462397,0.00025,2]
[392222333,1761265840813,-20000.0,0.00025,28]
[392222334,1761265840822,-205.886068,0.00025,2]
[392222335,1761265840831,-459.36120903,0.00025033,2]
[392222336,1761265840840,-467.0,0.00025042,2]
[392222337,1761265840850,-467.0,0.00025096,2]
[392222338,1761265840859,-156.985848,0.00025151,2]
[392222339,1761265840868,-467.0,0.00025151,2]
[392222340,1761265840877,-4231.0,0.00025171,2]
[392222341,1761265840886,-573.54745343,0.000252,5]
[392222342,1761265840896,-500.0,0.00025205,5]
[392222343,1761265840906,-467.0,0.00025206,2]
[392222344,1761265840915,-600.0,0.0002522,2]
[392222345,1761265840923,-467.0,0.00025261,2]
[392222346,1761265840932,-809.01312182,0.00025289,3]
[392222347,1761265840941,-467.0,0.00025316,2]
[392222348,1761265840951,-467.0,0.0002537,2]
[392222349,1761265840961,-2016.63478182,0.00025394,2]
[392222350,1761265840969,-360.0,0.00025396,2]
[392222351,1761265840978,-156.985848,0.000254,5]
[392222352,1761265840987,-500.0,0.00025405,2]
[392222353,1761265840996,-502.2414896,0.00025421,2]
[392222354,1761265841005,-1000.0,0.00025421,2]
[392222355,1761265841016,-1000.0,0.00025421,2]
[392222356,1761265841024,-917.44199242,0.00025421,2]
[392222357,1761265841034,-1000.0,0.00025421,2]
[392222358,1761265841043,-983.41214183,0.00025421,2]
[392222359,1761265841053,-1000.0,0.00025421,2]
[392222360,1761265841064,-1000.0,0.00025421,2]
[392222362,1761265841074,-1000.0,0.00025421,2]
[392222363,1761265841083,-500.0,0.00025421,2]
[392222364,1761265841094,-1002.17038283,0.00025421,2]
[392222366,1761265841104,-500.0,0.00025421,2]
[392222368,1761265841114,-1000.0,0.00025421,2]
[392222370,1761265841125,-501.46413548,0.00025421,2]
[392222372,1761265841134,-467.0,0.00025425,2]
[392222374,1761265841145,-500.0,0.00025479,5]
[392222376,1761265841154,-467.0,0.0002548,2]
[392222378,1761265841163,-600.0,0.0002548,2]
[392222380,1761265841172,-467.0,0.00025535,2]
[392222382,1761265841183,-467.0,0.0002559,2]
[392222385,1761265841192,-403.24192968,0.000256,7]
[392222386,1761265841202,-3708.0,0.00025623,7]
[392222389,1761265841211,-247.9795741,0.00025641,2]
[392222390,1761265841220,-467.0,0.00025644,2]
[392222392,1761265841229,-276.1069714,0.00025655,2]
[392222395,1761265841238,-467.0,0.00025699,2]
[392222396,1761265841247,-156.985848,0.0002572,20]
[392222398,1761265841257,-153.854305,0.0002572,20]
[392222401,1761265841266,-600.0,0.0002574,2]
[392222402,1761265841276,-500.0,0.00025753,5]
[392222404,1761265841286,-467.0,0.00025754,2]
[392222407,1761265841296,-5000.0,0.0002577,2]
[392222408,1761265841307,-1893.3395465,0.0002579,2]
[392222410,1761265841316,-1300.0,0.000258,3]
[392222411,1761265841326,-467.0,0.00025809,2]
[392222412,1761265841336,-467.0,0.00025863,2]
[392222413,1761265841345,-3708.0,0.00025889,2]
[392222414,1761265841355,-516.12786272,0.00025892,3]
[392222415,1761265841364,-172.47352,0.000259,2]
[392222416,1761265841373,-479.79181404,0.00025918,2]
[392222417,1761265841387,-11242.03696947,0.00025927,2]
[392222418,1761265841396,-14344.60455045,0.00025927,2]
[392222419,1761265841406,-460.0,0.00025944,2]
[392222420,1761265841415,-1287.33199543,0.00025968,2]
[392222421,1761265841425,-1500.0,0.00025968,2]
[392222422,1761265841434,-1500.0,0.00025968,2]
[392222423,1761265841444,-1500.0,0.00025968,2]
[392222424,1761265841453,-1500.0,0.00025968,2]
[392222425,1761265841463,-644.46463689,0.00025968,2]
[392222426,1761265841472,-500.0,0.00025968,2]
[392222427,1761265841482,-200.0,0.00025973,2]
[392222428,1761265841491,-1893.3395465,0.0002598,2]
[392222429,1761265841500,-3115.97002093,0.00026,2]
[392222430,1761265841510,-39289.46506814,0.00026,10]
[392222431,1761265841519,-160.0,0.00026,10]
[392222432,1761265841528,-403.24192968,0.00026,10]
[392222433,1761265841538,-164.90335028,0.00026,2]
[392222434,1761265841547,-163531.4509552,0.00026,30]
[392222435,1761265841557,-600.0,0.00026,2]
[392222436,1761265841566,-1893.3395465,0.00026008,2]
[392222437,1761265841576,-3786.679093,0.00026017,2]
[392222438,1761265841585,-500.0,0.00026027,5]
[392222439,1761265841594,-154.966948,0.00026027,7]
[392222440,1761265841603,-155.622797,0.00026027,7]
[392222441,1761265841613,-151.0,0.00026027,7]
[392222442,1761265841622,-151.0,0.00026027,7]
[392222443,1761265841632,-151.0,0.00026027,7]
[392222444,1761265841642,-151.0,0.00026027,7]
[392222445,1761265841651,-151.0,0.00026027,7]
[392222446,1761265841660,-151.0,0.00026027,7]
[392222447,1761265841670,-151.0,0.00026027,7]
[392222448,1761265841679,-151.0,0.00026027,7]
[392222449,1761265841688,-151.0,0.00026027,7]
[392222450,1761265841697,-151.0,0.00026027,7]
[392222451,1761265841706,-151.0,0.00026027,7]
[392222452,1761265841716,-167.137098,0.00026027,7]
[392222453,1761265841725,-151.0,0.00026027,7]
[392222454,1761265841734,-151.0,0.00026027,7]
[392222455,1761265841743,-151.0,0.00026027,7]
[392222456,1761265841753,-151.0,0.00026027,7]
[392222457,1761265841762,-151.0,0.00026027,7]
[392222458,1761265841772,-151.0,0.00026027,7]
[392222459,1761265841782,-151.0,0.00026027,7]
[392222460,1761265841792,-177.991921,0.00026027,7]
[392222461,1761265841801,-198.084585,0.00026027,7]
[392222462,1761265841811,-198.084585,0.00026027,7]
[392222463,1761265841820,-198.084585,0.00026027,7]
[392222464,1761265841829,-151.0,0.00026027,7]
[392222465,1761265841839,-151.0,0.00026027,7]
[392222466,1761265841848,-151.0,0.00026027,7]
[392222467,1761265841857,-151.0,0.00026027,7]
[392222468,1761265841867,-151.0,0.00026027,7]
[392222469,1761265841876,-151.0,0.00026027,7]
[392222470,1761265841886,-151.0,0.00026027,7]
[392222471,1761265841895,-151.0,0.00026027,7]
[392222472,1761265841906,-151.0,0.00026027,7]
[392222473,1761265841915,-198.084585,0.00026027,7]
[392222474,1761265841924,-198.084585,0.00026027,7]
[392222475,1761265841933,-198.084585,0.00026027,7]
[392222476,1761265841943,-151.0,0.00026027,7]
[392222477,1761265841952,-198.084585,0.00026027,7]
[392222478,1761265841962,-151.0,0.00026027,7]
[392222479,1761265841971,-198.084585,0.00026027,7]
[392222480,1761265841980,-151.0,0.00026027,7]
[392222481,1761265841989,-198.084585,0.00026027,7]
[392222482,1761265841998,-151.0,0.00026027,7]
[392222483,1761265842007,-198.084585,0.00026027,7]
[392222484,1761265842017,-151.0,0.00026027,7]
[392222485,1761265842026,-198.084585,0.00026027,7]
[392222486,1761265842035,-245.0,0.00026027,7]
[392222487,1761265842044,-198.084585,0.00026027,7]
[392222488,1761265842053,-198.084585,0.00026027,7]
[392222489,1761265842063,-198.084585,0.00026027,7]
[392222490,1761265842072,-151.0,0.00026027,7]
[392222491,1761265842081,-198.084585,0.00026027,7]
[392222492,1761265842090,-151.0,0.00026027,7]
[392222494,1761265842188,-198.084585,0.00026027,7]
[392222495,1761265842198,-151.0,0.00026027,7]
[392222496,1761265842208,-198.084585,0.00026027,7]
[392222497,1761265842218,-151.0,0.00026027,7]
[392222498,1761265842227,-198.084585,0.00026027,7]
[392222499,1761265842236,-151.0,0.00026027,7]
[392222500,1761265842246,-198.084585,0.00026027,7]
[392222501,1761265842255,-164.803959,0.00026027,7]
[392222502,1761265842265,-198.084591,0.00026027,7]
[392222503,1761265842274,-151.0,0.00026027,7]
[392222504,1761265842284,-151.0,0.00026027,7]
[392222505,1761265842293,-151.0,0.00026027,7]
[392222506,1761265842303,-151.0,0.00026027,7]
[392222507,1761265842312,-151.0,0.00026027,7]
[392222508,1761265842322,-151.0,0.00026027,7]
[392222509,1761265842332,-151.0,0.00026027,7]
[392222510,1761265842342,-151.0,0.00026027,7]
[392222511,1761265842352,-151.0,0.00026027,7]
[392222512,1761265842362,-151.0,0.00026027,7]
[392222513,1761265842371,-151.0,0.00026027,7]
[392222514,1761265842385,-151.0,0.00026027,7]
[392222515,1761265842395,-151.0,0.00026027,7]
[392222516,1761265842404,-151.0,0.00026027,7]
[392222517,1761265842413,-151.0,0.00026027,7]
[392222518,1761265842424,-151.0,0.00026027,7]
[392222519,1761265842433,-151.0,0.00026027,7]
[392222520,1761265842443,-151.0,0.00026027,7]
[392222521,1761265842452,-151.0,0.00026027,7]
[392222522,1761265842461,-151.0,0.00026027,7]
[392222523,1761265842471,-151.0,0.00026027,7]
[392222524,1761265842480,-151.0,0.00026027,7]
[392222525,1761265842490,-151.0,0.00026027,7]
[392222526,1761265842499,-151.0,0.00026027,7]
[392222527,1761265842509,-151.0,0.00026027,7]
[392222528,1761265842518,-151.0,0.00026027,7]
[392222529,1761265842528,-164.563007,0.00026027,7]
[392222530,1761265842538,-151.0,0.00026027,7]
[392222531,1761265842547,-151.0,0.00026027,7]
[392222532,1761265842556,-151.0,0.00026027,7]
[392222533,1761265842566,-151.0,0.00026027,7]
[392222534,1761265842575,-151.0,0.00026027,7]
[392222535,1761265842584,-151.0,0.00026027,7]
[392222536,1761265842594,-151.0,0.00026027,7]
[392222537,1761265842603,-151.0,0.00026027,7]
[392222538,1761265842612,-281.971021,0.00026027,7]
[392222539,1761265842623,-151.0,0.00026027,7]
[392222540,1761265842633,-242.549118,0.00026027,7]
[392222541,1761265842642,-221.095218,0.00026027,7]
[392222542,1761265842651,-221.095218,0.00026027,7]
[392222543,1761265842661,-221.095218,0.00026027,7]
[392222544,1761265842670,-221.095218,0.00026027,7]
[392222545,1761265842680,-192.799843,0.00026027,7]
[392222546,1761265842689,-192.799843,0.00026027,7]
[392222547,1761265842699,-192.799843,0.00026027,7]
[392222548,1761265842709,-192.799843,0.00026027,7]
[392222549,1761265842718,-221.095218,0.00026027,7]
[392222550,1761265842727,-192.799843,0.00026027,7]
[392222551,1761265842736,-221.095218,0.00026027,7]
[392222553,1761265842746,-192.799843,0.00026027,7]
[392222555,1761265842755,-221.095218,0.00026027,7]
[392222557,1761265842764,-192.799843,0.00026027,7]
[392222559,1761265842773,-221.095218,0.00026027,7]
[392222561,1761265842783,-192.799843,0.00026027,7]
[392222563,1761265842792,-221.095218,0.00026027,7]
[392222565,1761265842802,-192.799843,0.00026027,7]
[392222566,1761265842811,-221.095218,0.00026027,7]
[392222568,1761265842821,-192.799843,0.00026027,7]
[392222570,1761265842830,-221.095218,0.00026027,7]
[392222572,1761265842839,-192.799843,0.00026027,7]
[392222574,1761265842848,-192.799843,0.00026027,7]
[392222575,1761265842858,-192.799843,0.00026027,7]
[392222577,1761265842867,-221.095218,0.00026027,7]
[392222579,1761265842877,-192.799843,0.00026027,7]
[392222581,1761265842886,-221.095218,0.00026027,7]
[392222583,1761265842895,-192.799843,0.00026027,7]
[392222585,1761265842905,-221.095218,0.00026027,7]
[392222587,1761265842914,-192.799843,0.00026027,7]
[392222589,1761265842924,-192.799843,0.00026027,7]
[392222591,1761265842932,-192.799843,0.00026027,7]
[392222593,1761265842941,-192.799843,0.00026027,7]
[392222595,1761265842950,-192.799852,0.00026027,7]
[392222597,1761265842959,-197.111223,0.00026027,7]
[392222599,1761265842969,-221.095218,0.00026027,7]
[392222601,1761265842978,-221.095218,0.00026027,7]
[392222603,1761265842988,-221.095218,0.00026027,7]
[392222605,1761265842996,-221.095218,0.00026027,7]
[392222607,1761265843006,-221.095218,0.00026027,7]
[392222608,1761265843015,-221.095222,0.00026027,7]
[392222610,1761265843025,-230.555605,0.00026027,7]
[392222612,1761265843034,-230.555605,0.00026027,7]
[392222614,1761265843044,-230.555605,0.00026027,7]
[392222616,1761265843055,-230.555605,0.00026027,7]
[392222618,1761265843064,-230.555605,0.00026027,7]
[392222620,1761265843073,-230.555605,0.00026027,7]
[392222622,1761265843083,-230.555605,0.00026027,7]
[392222624,1761265843092,-230.555605,0.00026027,7]
[392222626,1761265843102,-230.555605,0.00026027,7]
[392222628,1761265843111,-230.555605,0.00026027,7]
[392222630,1761265843121,-230.555605,0.00026027,7]
[392222632,1761265843130,-230.555605,0.00026027,7]
[392222634,1761265843139,-230.555605,0.00026027,7]
[392222636,1761265843149,-230.555605,0.00026027,7]
[392222638,1761265843158,-230.555605,0.00026027,7]
[392222640,1761265843167,-230.555605,0.00026027,7]
[392222642,1761265843176,-230.555605,0.00026027,7]
[392222644,1761265843185,-230.555605,0.00026027,7]
[392222646,1761265843195,-230.555605,0.00026027,7]
[392222648,1761265843204,-230.555602,0.00026027,7]
[392222650,1761265843213,-157.374066,0.00026027,7]
[392222652,1761265843222,-166.180347,0.00026027,7]
[392222654,1761265843231,-166.180347,0.00026027,7]
[392222655,1761265843240,-166.180347,0.00026027,7]
[392222657,1761265843249,-166.180347,0.00026027,7]
[392222659,1761265843259,-166.180347,0.00026027,7]
[392222661,1761265843268,-166.180347,0.00026027,7]
[392222663,1761265843278,-166.180347,0.00026027,7]
[392222665,1761265843287,-166.180347,0.00026027,7]
[392222667,1761265843296,-166.180347,0.00026027,7]
[392222669,1761265843305,-166.180347,0.00026027,7]
[392222672,1761265843317,-166.180347,0.00026027,7]
[392222674,1761265843327,-166.180347,0.00026027,7]
[392222676,1761265843336,-166.180347,0.00026027,7]
[392222677,1761265843345,-166.180347,0.00026027,7]
[392222680,1761265843355,-166.180347,0.00026027,7]
[392222681,1761265843364,-166.180347,0.00026027,7]
[392222684,1761265843375,-166.180347,0.00026027,7]
[392222685,1761265843387,-166.180347,0.00026027,7]
[392222688,1761265843396,-166.180347,0.00026027,7]
[392222689,1761265843406,-166.180346,0.00026027,7]
[392222692,1761265843416,-151.0,0.00026027,7]
[392222694,1761265843425,-151.0,0.00026027,7]
[392222696,1761265843434,-151.0,0.00026027,7]
[392222698,1761265843444,-151.0,0.00026027,7]
[392222700,1761265843453,-151.0,0.00026027,7]
[392222701,1761265843462,-151.0,0.00026027,7]
[392222703,1761265843471,-151.0,0.00026027,7]
[392222705,1761265843480,-151.0,0.00026027,7]
[392222707,1761265843490,-151.0,0.00026027,7]
[392222710,1761265843499,-151.0,0.00026027,7]
[392222711,1761265843509,-151.0,0.00026027,7]
[392222713,1761265843518,-151.0,0.00026027,7]
[392222715,1761265843528,-151.0,0.00026027,7]
[392222717,1761265843537,-151.0,0.00026027,7]
[392222719,1761265843546,-156.301719,0.00026027,7]
[392222721,1761265843555,-151.0,0.00026027,7]
[392222723,1761265843565,-151.0,0.00026027,7]
[392222725,1761265843575,-151.0,0.00026027,7]
[392222727,1761265843584,-151.0,0.00026027,7]
[392222730,1761265843594,-151.0,0.00026027,7]
[392222732,1761265843603,-151.0,0.00026027,7]
[392222734,1761265843613,-151.0,0.00026027,7]
[392222735,1761265843623,-151.0,0.00026027,7]
[392222738,1761265843635,-151.0,0.00026027,7]
[392222740,1761265843644,-161.703957,0.00026027,7]
[392222742,1761265843654,-151.0,0.00026027,7]
[392222744,1761265843663,-151.0,0.00026027,7]
[392222746,1761265843672,-151.0,0.00026027,7]
[392222748,1761265843681,-151.0,0.00026027,7]
[392222750,1761265843690,-151.0,0.00026027,7]
[392222752,1761265843699,-151.0,0.00026027,7]
[392222753,1761265843708,-151.0,0.00026027,7]
[392222755,1761265843717,-151.0,0.00026027,7]
[392222758,1761265843727,-151.0,0.00026027,7]
[392222760,1761265843736,-151.0,0.00026027,7]
[392222762,1761265843746,-151.0,0.00026027,7]
[392222764,1761265843757,-151.0,0.00026027,7]
[392222766,1761265843767,-151.0,0.00026027,7]
[392222768,1761265843776,-151.0,0.00026027,7]
[392222769,1761265843785,-151.0,0.00026027,7]
[392222771,1761265843795,-151.0,0.00026027,7]
[392222773,1761265843804,-151.0,0.00026027,7]
[392222776,1761265843828,-151.0,0.00026027,7]
[392222777,1761265843838,-171.942117,0.00026027,7]
[392222779,1761265843847,-151.0,0.00026027,7]
[392222782,1761265843857,-151.0,0.00026027,7]
[392222784,1761265843866,-151.0,0.00026027,7]
[392222785,1761265843876,-151.0,0.00026027,7]
[392222788,1761265843886,-151.0,0.00026027,7]
[392222790,1761265843895,-158.45603,0.00026027,7]
[392222791,1761265843907,-151.0,0.00026027,7]
[392222794,1761265843916,-151.0,0.00026027,7]
[392222796,1761265843925,-151.0,0.00026027,7]
[392222798,1761265843935,-155.492935,0.00026027,7]